fUSD/lending_fUSD_20250125
["ID","MTS","AMOUNT","RATE_DAILY","PERIOD"]
[350314438,1737783058457,-500.0,0.0001726,2]
[350314439,1737783058467,-500.0,0.0001726,2]
[350314440,1737783058477,-802.79,0.0001726,2]
[350314441,1737783058487,-500.0,0.0001726,2]
[350314442,1737783058497,-587.68162681,0.0001726,2]
[350314443,1737783058506,-297.16339167,0.0001726,2]
[350314444,1737783058515,-500.0,0.0001726,2]
[350314445,1737783058525,-961.8,0.0001726,2]
[350314446,1737783058535,-500.0,0.0001726,2]
[350314447,1737783058545,-516.52,0.0001726,2]
[350314448,1737783058555,-500.0,0.0001726,2]
[350314449,1737783058565,-671.56,0.0001726,2]
[350314450,1737783058574,-247.4627999,0.0001726,2]
[350314451,1737783058584,-895.01,0.0001726,2]
[350314452,1737783058598,-582.11445221,0.0001726,2]
[350314453,1737783058607,-500.0,0.0001726,2]
[350314454,1737783058617,-500.0,0.0001726,2]
[350314455,1737783058626,-500.0,0.0001726,2]
[350314456,1737783058637,-716.74,0.0001726,2]
[350314457,1737783058646,-500.0,0.0001726,2]
[350314458,1737783058656,-500.0,0.0001726,2]
[350314459,1737783058665,-500.0,0.0001726,2]
[350314460,1737783058676,-500.0,0.0001726,2]
[350314461,1737783058686,-500.0,0.0001726,2]
[350314462,1737783058695,-500.0,0.0001726,2]
[350314463,1737783058705,-500.0,0.0001726,2]
[350314464,1737783058714,-500.0,0.0001726,2]
[350314465,1737783058724,-1038.34,0.0001726,2]
[350314466,1737783058733,-1061.24,0.0001726,2]
[350314467,1737783058742,-500.0,0.0001726,2]
[350314468,1737783058751,-782.07,0.0001726,2]
[350314469,1737783058761,-1520.72,0.0001726,2]
[350314470,1737783058771,-500.0,0.0001726,2]
[350314471,1737783058780,-1256.58,0.0001726,2]
[350314472,1737783058790,-500.0,0.0001726,2]
[350314473,1737783058799,-649.67,0.0001726,2]
[350314474,1737783058808,-500.0,0.0001726,2]
[350314475,1737783058818,-500.0,0.0001726,2]
[350314476,1737783058828,-500.0,0.0001726,2]
[350314477,1737783058837,-500.0,0.0001726,2]
[350314478,1737783058846,-500.0,0.0001726,2]
[350314479,1737783058855,-565.16,0.0001726,2]
[350314480,1737783058865,-500.0,0.0001726,2]
[350314481,1737783058875,-500.0,0.0001726,2]
[350314482,1737783058884,-500.0,0.0001726,2]
[350314483,1737783058894,-500.0,0.0001726,2]
[350314484,1737783058904,-708.27,0.0001726,2]
[350314485,1737783058913,-563.51,0.0001726,2]
[350314486,1737783058923,-500.0,0.0001726,2]
[350314487,1737783058932,-500.0,0.0001726,2]
[350314488,1737783058942,-500.0,0.0001726,2]
[350314489,1737783058951,-560.94,0.0001726,2]
[350314490,1737783058961,-500.0,0.0001726,2]
[350314491,1737783058971,-528.35665481,0.0001726,2]
[350314492,1737783058980,-2294.31453618,0.00017297,2]
[350314493,1737783058990,-403.54,0.00017355,2]
[350314494,1737783058999,-170.46,0.00017373,2]
[350314495,1737783059009,-1000.0,0.00017392,2]
[350314496,1737783059019,-537.33998131,0.00017396,2]
[350314497,1737783059029,-516.35449352,0.00017396,2]
[350314498,1737783059038,-500.0,0.00017396,2]
[350314499,1737783059048,-500.0,0.00017396,2]
[350314500,1737783059058,-517.65938348,0.00017396,2]
[350314501,1737783059068,-500.0,0.00017396,2]
[350314502,1737783059077,-500.0,0.00017396,2]
[350314503,1737783059086,-500.0,0.00017397,2]
[350314504,1737783059095,-195.36461911,0.00017397,2]
[350314505,1737783059106,-500.0,0.00017397,2]
[350314506,1737783059116,-523.54417537,0.00017397,2]
[350314507,1737783059126,-266.17191375,0.00017397,2]
[350314508,1737783059136,-500.0,0.00017397,2]
[350314509,1737783059145,-500.0,0.00017397,2]
[350314510,1737783059156,-500.0,0.00017397,2]
[350314511,1737783059165,-500.0,0.00017397,2]
[350314512,1737783059175,-500.0,0.00017397,2]
[350314513,1737783059185,-500.0,0.00017397,2]
[350314514,1737783059195,-500.0,0.00017397,2]
[350314515,1737783059205,-500.0,0.00017397,2]
[350314516,1737783059215,-500.0,0.00017397,2]
[350314517,1737783059225,-500.0,0.00017397,2]
[350314518,1737783059235,-456.80146373,0.00017397,2]
[350314519,1737783059243,-500.0,0.00017397,2]
[350314520,1737783059253,-500.0,0.00017397,2]
[350314521,1737783059262,-500.0,0.00017397,2]
[350314522,1737783059271,-500.0,0.00017397,2]
[350314523,1737783059281,-584.59,0.00017397,2]
[350314524,1737783059290,-500.0,0.00017397,2]
[350314525,1737783059300,-500.0,0.00017397,2]
[350314526,1737783059309,-500.0,0.00017397,2]
[350314527,1737783059319,-500.0,0.00017397,2]
[350314528,1737783059328,-500.0,0.00017397,2]
[350314529,1737783059337,-500.0,0.00017397,2]
[350314530,1737783059346,-399.49308085,0.00017397,2]
[350314531,1737783059356,-500.0,0.00017397,2]
[350314532,1737783059365,-619.14555509,0.00017397,2]
[350314533,1737783059374,-500.0,0.00017397,2]
[350314534,1737783059384,-500.0,0.00017397,2]
[350314535,1737783059394,-500.0,0.00017397,2]
[350314536,1737783059403,-520.50850601,0.00017397,2]
[350314537,1737783059412,-500.0,0.00017397,2]
[350314538,1737783059421,-558.54729577,0.00017397,2]
[350314539,1737783059431,-500.0,0.00017397,2]
[350314540,1737783059440,-500.0,0.00017397,2]
[350314541,1737783059450,-500.0,0.00017397,2]
[350314542,1737783059459,-500.0,0.00017397,2]
[350314543,1737783059468,-520.34865349,0.00017397,2]
[350314544,1737783059477,-500.0,0.00017397,2]
[350314545,1737783059487,-637.00594602,0.00017397,2]
[350314546,1737783059496,-320.61057916,0.00017397,2]
[350314547,1737783059505,-489.58398958,0.00017397,2]
[350314548,1737783059515,-500.0,0.00017397,2]
[350314549,1737783059524,-500.0,0.00017397,2]
[350314550,1737783059534,-500.0,0.00017397,2]
[350314551,1737783059543,-500.0,0.00017397,2]
[350314552,1737783059553,-500.0,0.00017397,2]
[350314553,1737783059562,-500.0,0.00017397,2]
[350314554,1737783059572,-500.0,0.00017397,2]
[350314555,1737783059582,-500.0,0.00017397,2]
[350314556,1737783059593,-500.0,0.00017397,2]
[350314557,1737783059603,-500.0,0.00017397,2]
[350314558,1737783059612,-500.0,0.00017397,2]
[350314559,1737783059621,-544.45,0.00017397,2]
[350314560,1737783059631,-500.0,0.00017397,2]
[350314561,1737783059640,-500.0,0.00017397,2]
[350314562,1737783059650,-500.0,0.00017397,2]
[350314563,1737783059662,-500.0,0.00017397,2]
[350314564,1737783059673,-500.0,0.00017397,2]
[350314565,1737783059683,-500.0,0.00017397,2]
[350314566,1737783059693,-455.558396,0.00017397,2]
[350314567,1737783059702,-500.0,0.00017397,2]
[350314568,1737783059712,-500.0,0.00017397,2]
[350314569,1737783059721,-500.0,0.00017397,2]
[350314570,1737783059731,-705.94,0.00017397,2]
[350314571,1737783059740,-522.06,0.00017397,2]
[350314572,1737783059749,-760.95,0.00017397,2]
[350314573,1737783059761,-500.0,0.00017397,2]
[350314574,1737783059772,-500.0,0.00017397,2]
[350314575,1737783059782,-500.0,0.00017397,2]
[350314576,1737783059792,-500.0,0.00017397,2]
[350314577,1737783059802,-500.0,0.00017397,2]
[350314578,1737783059814,-842.359431,0.00017397,2]
[350314579,1737783059824,-505.59,0.00017397,2]
[350314580,1737783059833,-500.0,0.00017397,2]
[350314581,1737783059843,-500.0,0.00017397,2]
[350314582,1737783059852,-500.0,0.00017397,2]
[350314583,1737783059862,-553.66,0.00017397,2]
[350314584,1737783059871,-698.56,0.00017397,2]
[350314585,1737783059881,-1108.6,0.00017397,2]
[350314586,1737783059890,-651.44,0.00017397,2]
[350314587,1737783059900,-500.0,0.00017397,2]
[350314588,1737783059909,-500.0,0.00017397,2]
[350314589,1737783059919,-500.0,0.00017397,2]
[350314590,1737783059928,-592.76,0.00017397,2]
[350314591,1737783059938,-500.0,0.00017397,2]
[350314592,1737783059948,-500.0,0.00017397,2]
[350314593,1737783059958,-500.0,0.00017397,2]
[350314594,1737783059967,-500.0,0.00017397,2]
[350314595,1737783059977,-639.65,0.00017397,2]
[350314596,1737783059987,-289.8232629,0.00017397,2]
[350314597,1737783059997,-516.37,0.00017397,2]
[350314598,1737783060007,-763.03,0.00017397,2]
[350314599,1737783060017,-203.25484099,0.00017397,2]
[350314600,1737783060027,-1200.4,0.00017397,2]
[350314601,1737783060036,-518.55,0.00017397,2]
[350314602,1737783060047,-500.0,0.00017397,2]
[350314603,1737783060057,-1125.84,0.00017397,2]
[350314604,1737783060069,-500.0,0.00017397,2]
[350314605,1737783060079,-500.0,0.00017397,2]
[350314606,1737783060089,-500.0,0.00017397,2]
[350314607,1737783060099,-500.0,0.00017397,2]
[350314608,1737783060109,-500.0,0.00017397,2]
[350314609,1737783060119,-500.0,0.00017397,2]
[350314610,1737783060128,-500.0,0.00017397,2]
[350314611,1737783060138,-500.0,0.00017397,2]
[350314612,1737783060148,-647.61269286,0.00017397,2]
[350314613,1737783060157,-500.0,0.00017397,2]
[350314614,1737783060167,-462.55916997,0.00017397,2]
[350314615,1737783060177,-500.0,0.00017397,2]
[350314616,1737783060187,-500.0,0.00017397,2]
[350314617,1737783060197,-802.79,0.00017397,2]
[350314618,1737783060207,-419.95239896,0.00017397,2]
[350314619,1737783060216,-500.0,0.00017397,2]
[350314620,1737783060225,-961.8,0.00017397,2]
[350314621,1737783060235,-500.0,0.00017397,2]
[350314622,1737783060245,-516.52,0.00017397,2]
[350314623,1737783060256,-500.0,0.00017397,2]
[350314624,1737783060266,-671.56,0.00017397,2]
[350314625,1737783060276,-895.01,0.00017397,2]
[350314626,1737783060285,-288.62,0.00017397,2]
[350314627,1737783060295,-500.0,0.00017397,2]
[350314628,1737783060305,-500.0,0.00017397,2]
[350314629,1737783060316,-716.74,0.00017397,2]
[350314630,1737783060326,-433.55001756,0.00017397,2]
[350314631,1737783060336,-500.0,0.00017397,2]
[350314632,1737783060475,-500.0,0.00017397,2]
[350314633,1737783060485,-500.0,0.00017397,2]
[350314634,1737783060495,-500.0,0.00017397,2]
[350314635,1737783060505,-390.39388806,0.00017397,2]
[350314636,1737783060515,-500.0,0.00017397,2]
[350314637,1737783060525,-500.0,0.00017397,2]
[350314638,1737783060535,-1038.34,0.00017397,2]
[350314639,1737783060545,-1061.24,0.00017397,2]
[350314640,1737783060554,-500.0,0.00017397,2]
[350314641,1737783060565,-782.07,0.00017397,2]
[350314642,1737783060575,-1520.72,0.00017397,2]
[350314643,1737783060584,-500.0,0.00017397,2]
[350314644,1737783060596,-1256.58,0.00017397,2]
[350314645,1737783060606,-500.0,0.00017397,2]
[350314646,1737783060615,-649.67,0.00017397,2]
[350314647,1737783060625,-500.0,0.00017397,2]
[350314648,1737783060635,-500.0,0.00017397,2]
[350314649,1737783060644,-500.0,0.00017397,2]
[350314650,1737783060654,-156.126415,0.00017397,2]
[350314651,1737783060663,-500.0,0.00017397,2]
[350314652,1737783060676,-500.0,0.00017397,2]
[350314653,1737783060685,-565.16,0.00017397,2]
[350314654,1737783060695,-500.0,0.00017397,2]
[350314655,1737783060704,-500.0,0.00017397,2]
[350314656,1737783060714,-500.0,0.00017397,2]
[350314657,1737783060723,-382.11576994,0.00017397,2]
[350314658,1737783060732,-708.27,0.00017397,2]
[350314659,1737783060742,-563.51,0.00017397,2]
[350314660,1737783060751,-500.0,0.00017397,2]
[350314661,1737783060761,-500.0,0.00017397,2]
[350314662,1737783060771,-500.0,0.00017397,2]
[350314663,1737783060780,-560.94,0.00017397,2]
[350314664,1737783060796,-500.0,0.00017397,2]
[350314665,1737783060805,-1030.27332747,0.00017417,2]
[350314666,1737783060815,-17593.50217509,0.0001747,2]
[350314667,1737783060824,-500.0,0.00017533,2]
[350314668,1737783060834,-523.32115828,0.00017533,2]
[350314669,1737783060843,-500.0,0.00017533,2]
[350314670,1737783060854,-500.0,0.00017533,2]
[350314671,1737783060863,-1075.58,0.00017533,2]
[350314672,1737783060873,-500.0,0.00017534,2]
[350314673,1737783060883,-500.0,0.00017534,2]
[350314674,1737783060892,-500.0,0.00017534,2]
[350314675,1737783060902,-500.0,0.00017534,2]
[350314676,1737783060912,-500.0,0.00017534,2]
[350314677,1737783060922,-246.23531029,0.00017534,2]
[350314678,1737783060931,-529.74219747,0.00017534,2]
[350314679,1737783060941,-500.0,0.00017534,2]
[350314680,1737783060951,-500.0,0.00017534,2]
[350314681,1737783060960,-500.0,0.00017534,2]
[350314682,1737783060970,-500.0,0.00017534,2]
[350314683,1737783060980,-500.0,0.00017534,2]
[350314684,1737783060989,-500.0,0.00017534,2]
[350314685,1737783060998,-500.0,0.00017534,2]
[350314686,1737783061007,-500.0,0.00017534,2]
[350314687,1737783061017,-500.0,0.00017534,2]
[350314688,1737783061026,-584.59,0.00017534,2]
[350314689,1737783061035,-500.0,0.00017534,2]
[350314690,1737783061044,-500.0,0.00017534,2]
[350314691,1737783061054,-500.0,0.00017534,2]
[350314692,1737783061065,-500.0,0.00017534,2]
[350314693,1737783061074,-500.0,0.00017534,2]
[350314694,1737783061083,-500.0,0.00017534,2]
[350314695,1737783061093,-500.0,0.00017534,2]
[350314696,1737783061103,-500.0,0.00017534,2]
[350314697,1737783061112,-500.0,0.00017534,2]
[350314698,1737783061121,-500.0,0.00017534,2]
[350314699,1737783061130,-500.0,0.00017534,2]
[350314700,1737783061140,-575.31259356,0.00017534,2]
[350314701,1737783061151,-287.56852329,0.00017534,2]
[350314702,1737783061161,-277.73599612,0.00017534,2]
[350314703,1737783061171,-500.0,0.00017534,2]
[350314704,1737783061180,-500.0,0.00017534,2]
[350314705,1737783061189,-500.0,0.00017534,2]
[350314706,1737783061199,-500.0,0.00017534,2]
[350314707,1737783061208,-500.0,0.00017534,2]
[350314708,1737783061217,-500.0,0.00017534,2]
[350314709,1737783061228,-500.0,0.00017534,2]
[350314710,1737783061237,-500.0,0.00017534,2]
[350314711,1737783061247,-500.0,0.00017534,2]
[350314712,1737783061256,-500.0,0.00017534,2]
[350314713,1737783061266,-500.0,0.00017534,2]
[350314714,1737783061275,-509.05979799,0.00017534,2]
[350314715,1737783061284,-500.0,0.00017534,2]
[350314716,1737783061293,-544.45,0.00017534,2]
[350314717,1737783061303,-394.61443795,0.00017534,2]
[350314718,1737783061313,-500.0,0.00017534,2]
[350314719,1737783061324,-500.0,0.00017534,2]
[350314720,1737783061334,-500.0,0.00017534,2]
[350314721,1737783061344,-500.0,0.00017534,2]
[350314722,1737783061354,-500.0,0.00017534,2]
[350314723,1737783061364,-455.558396,0.00017534,2]
[350314724,1737783061373,-500.0,0.00017534,2]
[350314725,1737783061383,-500.0,0.00017534,2]
[350314726,1737783061392,-500.0,0.00017534,2]
[350314727,1737783061401,-705.94,0.00017534,2]
[350314728,1737783061411,-522.06,0.00017534,2]
[350314729,1737783061421,-760.95,0.00017534,2]
[350314730,1737783061431,-394.97111038,0.00017534,2]
[350314731,1737783061440,-500.0,0.00017534,2]
[350314732,1737783061450,-500.0,0.00017534,2]
[350314733,1737783061459,-500.0,0.00017534,2]
[350314734,1737783061470,-500.0,0.00017534,2]
[350314735,1737783061479,-842.359431,0.00017534,2]
[350314736,1737783061489,-505.59,0.00017534,2]
[350314737,1737783061499,-504.33537518,0.00017534,2]
[350314738,1737783061508,-500.0,0.00017534,2]
[350314739,1737783061518,-401.47917574,0.00017534,2]
[350314740,1737783061527,-553.66,0.00017534,2]
[350314741,1737783061537,-698.56,0.00017534,2]
[350314742,1737783061546,-1108.6,0.00017534,2]
[350314743,1737783061556,-651.44,0.00017534,2]
[350314744,1737783061566,-436.7249749,0.00017534,2]
[350314745,1737783061576,-609.66163302,0.00017534,2]
[350314746,1737783061585,-500.0,0.00017534,2]
[350314747,1737783061597,-592.76,0.00017534,2]
[350314748,1737783061606,-500.0,0.00017534,2]
[350314749,1737783061616,-500.0,0.00017534,2]
[350314750,1737783061625,-500.0,0.00017534,2]
[350314751,1737783061635,-500.0,0.00017534,2]
[350314752,1737783061644,-639.65,0.00017534,2]
[350314753,1737783061654,-516.37,0.00017534,2]
[350314754,1737783061663,-763.03,0.00017534,2]
[350314755,1737783061673,-1200.4,0.00017534,2]
[350314756,1737783061683,-518.55,0.00017534,2]
[350314757,1737783061693,-296.24647298,0.00017534,2]
[350314758,1737783061702,-1125.84,0.00017534,2]
[350314759,1737783061711,-475.09631032,0.00017534,2]
[350314760,1737783061720,-153.9607294,0.00017534,2]
[350314761,1737783061730,-500.0,0.00017534,2]
[350314762,1737783061739,-500.0,0.00017534,2]
[350314763,1737783061748,-500.0,0.00017534,2]
[350314764,1737783061757,-500.0,0.00017534,2]
[350314765,1737783061767,-500.0,0.00017534,2]
[350314766,1737783061776,-500.0,0.00017534,2]
[350314767,1737783061786,-500.0,0.00017534,2]
[350314768,1737783061796,-500.0,0.00017534,2]
[350314769,1737783061805,-410.41883423,0.00017534,2]
[350314770,1737783061816,-802.79,0.00017534,2]
[350314771,1737783061826,-500.0,0.00017534,2]
[350314772,1737783061835,-961.8,0.00017534,2]
[350314773,1737783061845,-500.0,0.00017534,2]
[350314774,1737783061854,-516.52,0.00017534,2]
[350314775,1737783061864,-500.0,0.00017534,2]
[350314776,1737783061873,-671.56,0.00017534,2]
[350314777,1737783061883,-895.01,0.00017534,2]
[350314778,1737783061892,-500.0,0.00017534,2]
[350314779,1737783061902,-500.0,0.00017534,2]
[350314780,1737783061912,-716.74,0.00017534,2]
[350314781,1737783061922,-500.0,0.00017534,2]
[350314782,1737783061932,-500.0,0.00017534,2]
[350314783,1737783061942,-500.0,0.00017534,2]
[350314784,1737783061953,-500.0,0.00017534,2]
[350314785,1737783061963,-500.0,0.00017534,2]
[350314786,1737783061972,-500.0,0.00017534,2]
[350314787,1737783061981,-1038.34,0.00017534,2]
[350314788,1737783061990,-1061.24,0.00017534,2]
[350314789,1737783061999,-500.0,0.00017534,2]
[350314790,1737783062010,-782.07,0.00017534,2]
[350314791,1737783062020,-151.529624,0.00017534,2]
[350314792,1737783062029,-1520.72,0.00017534,2]
[350314793,1737783062038,-377.41500248,0.00017534,2]
[350314794,1737783062048,-1256.58,0.00017534,2]
[350314795,1737783062057,-500.0,0.00017534,2]
[350314796,1737783062067,-649.67,0.00017534,2]
[350314797,1737783062077,-500.0,0.00017534,2]
[350314798,1737783062086,-500.0,0.00017534,2]
[350314799,1737783062096,-500.0,0.00017534,2]
[350314800,1737783062105,-500.0,0.00017534,2]
[350314801,1737783062114,-500.0,0.00017534,2]
[350314802,1737783062124,-565.16,0.00017534,2]
[350314803,1737783062133,-500.0,0.00017534,2]
[350314804,1737783062143,-500.0,0.00017534,2]
[350314805,1737783062152,-500.0,0.00017534,2]
[350314806,1737783062161,-708.27,0.00017534,2]
[350314807,1737783062171,-563.51,0.00017534,2]
[350314808,1737783062180,-500.0,0.00017534,2]
[350314809,1737783062190,-623.08361287,0.00017534,2]
[350314810,1737783062199,-500.0,0.00017534,2]
[350314811,1737783062208,-560.94,0.00017534,2]
[350314812,1737783062218,-500.0,0.00017534,2]
[350314813,1737783062227,-1000.0,0.00017578,2]
[350314814,1737783062237,-1030.27332747,0.0001759,2]
[350314815,1737783062247,-232.82975545,0.00017654,2]
[350314816,1737783062256,-500.0,0.0001767,2]
[350314817,1737783062266,-500.0,0.0001767,2]
[350314818,1737783062276,-530.13908244,0.00017671,2]
[350314819,1737783062285,-500.0,0.00017671,2]
[350314820,1737783062295,-222.0629675,0.00017671,2]
[350314821,1737783062306,-500.0,0.00017671,2]
[350314822,1737783062318,-500.0,0.00017671,2]
[350314823,1737783062328,-500.0,0.00017671,2]
[350314824,1737783062337,-500.0,0.00017671,2]
[350314825,1737783062347,-500.0,0.00017671,2]
[350314826,1737783062357,-526.40590947,0.00017671,2]
[350314827,1737783062366,-500.0,0.00017671,2]
[350314828,1737783062376,-500.0,0.00017671,2]
[350314829,1737783062385,-500.0,0.00017671,2]
[350314830,1737783062395,-413.13569162,0.00017671,2]
[350314831,1737783062404,-500.0,0.00017671,2]
[350314832,1737783062413,-584.59,0.00017671,2]
[350314833,1737783062423,-500.0,0.00017671,2]
[350314834,1737783062433,-500.0,0.00017671,2]
[350314835,1737783062443,-500.0,0.00017671,2]
[350314836,1737783062452,-194.53153608,0.00017671,2]
[350314837,1737783062462,-500.0,0.00017671,2]
[350314838,1737783062471,-500.0,0.00017671,2]
[350314839,1737783062480,-500.0,0.00017671,2]
[350314840,1737783062489,-500.0,0.00017671,2]
[350314841,1737783062498,-500.0,0.00017671,2]
[350314842,1737783062507,-500.0,0.00017671,2]
[350314843,1737783062516,-500.0,0.00017671,2]
[350314844,1737783062526,-500.0,0.00017671,2]
[350314845,1737783062535,-500.0,0.00017671,2]
[350314846,1737783062544,-500.0,0.00017671,2]
[350314847,1737783062554,-500.0,0.00017671,2]
[350314848,1737783062564,-500.0,0.00017671,2]
[350314849,1737783062575,-500.0,0.00017671,2]
[350314850,1737783062585,-230.76462428,0.00017671,2]
[350314851,1737783062596,-500.0,0.00017671,2]
[350314852,1737783062606,-500.0,0.00017671,2]
[350314853,1737783062616,-500.0,0.00017671,2]
[350314854,1737783062625,-324.21,0.00017671,2]
[350314855,1737783062635,-500.0,0.00017671,2]
[350314856,1737783062644,-544.45,0.00017671,2]
[350314857,1737783062654,-500.0,0.00017671,2]
[350314858,1737783062664,-500.0,0.00017671,2]
[350314859,1737783062674,-500.0,0.00017671,2]
[350314860,1737783062684,-500.0,0.00017671,2]
[350314861,1737783062694,-500.0,0.00017671,2]
[350314862,1737783062704,-500.0,0.00017671,2]
[350314863,1737783062713,-455.558396,0.00017671,2]
[350314864,1737783062723,-428.31,0.00017671,2]
[350314865,1737783062732,-500.0,0.00017671,2]
[350314866,1737783062741,-705.94,0.00017671,2]
[350314867,1737783062750,-522.06,0.00017671,2]
[350314868,1737783062760,-760.95,0.00017671,2]
[350314869,1737783062770,-500.0,0.00017671,2]
[350314870,1737783062780,-500.0,0.00017671,2]
[350314871,1737783062790,-500.0,0.00017671,2]
[350314872,1737783062800,-500.0,0.00017671,2]
[350314873,1737783062810,-842.359431,0.00017671,2]
[350314874,1737783062821,-505.59,0.00017671,2]
[350314875,1737783062831,-500.0,0.00017671,2]
[350314876,1737783062840,-553.66,0.00017671,2]
[350314877,1737783062849,-698.56,0.00017671,2]
[350314878,1737783062859,-1108.6,0.00017671,2]
[350314879,1737783062868,-651.44,0.00017671,2]
[350314880,1737783062877,-500.0,0.00017671,2]
[350314881,1737783062887,-592.76,0.00017671,2]
[350314882,1737783062896,-500.0,0.00017671,2]
[350314883,1737783062905,-500.0,0.00017671,2]
[350314884,1737783062915,-500.0,0.00017671,2]
[350314885,1737783062924,-500.0,0.00017671,2]
[350314886,1737783062933,-639.65,0.00017671,2]
[350314887,1737783062943,-516.37,0.00017671,2]
[350314888,1737783062952,-763.03,0.00017671,2]
[350314889,1737783062962,-518.55,0.00017671,2]
[350314890,1737783062971,-1200.4,0.00017671,2]
[350314891,1737783062981,-1125.84,0.00017671,2]
[350314892,1737783062990,-500.0,0.00017671,2]
[350314893,1737783062999,-500.0,0.00017671,2]
[350314894,1737783063008,-622.15012138,0.00017671,2]
[350314895,1737783063018,-360.63,0.00017671,2]
[350314896,1737783063028,-500.0,0.00017671,2]
[350314897,1737783063037,-500.0,0.00017671,2]
[350314898,1737783063049,-500.0,0.00017671,2]
[350314899,1737783063059,-500.0,0.00017671,2]
[350314900,1737783063071,-802.79,0.00017671,2]
[350314901,1737783063081,-500.0,0.00017671,2]
[350314902,1737783063090,-961.8,0.00017671,2]
[350314903,1737783063099,-500.0,0.00017671,2]
[350314904,1737783063109,-516.52,0.00017671,2]
[350314905,1737783063118,-203.8320516,0.00017671,2]
[350314906,1737783063127,-671.56,0.00017671,2]
[350314907,1737783063137,-895.01,0.00017671,2]
[350314908,1737783063146,-500.0,0.00017671,2]
[350314909,1737783063156,-500.0,0.00017671,2]
[350314910,1737783063165,-716.74,0.00017671,2]
[350314911,1737783063175,-500.0,0.00017671,2]
[350314912,1737783063185,-500.0,0.00017671,2]
[350314913,1737783063194,-500.0,0.00017671,2]
[350314914,1737783063204,-500.0,0.00017671,2]
[350314915,1737783063213,-500.0,0.00017671,2]
[350314916,1737783063223,-500.0,0.00017671,2]
[350314917,1737783063232,-1038.34,0.00017671,2]
[350314918,1737783063242,-1061.24,0.00017671,2]
[350314919,1737783063252,-500.0,0.00017671,2]
[350314920,1737783063262,-782.07,0.00017671,2]
[350314921,1737783063271,-1520.72,0.00017671,2]
[350314922,1737783063281,-1256.58,0.00017671,2]
[350314923,1737783063290,-500.0,0.00017671,2]
[350314924,1737783063300,-649.67,0.00017671,2]
[350314925,1737783063310,-500.0,0.00017671,2]
[350314926,1737783063322,-500.0,0.00017671,2]
[350314927,1737783063331,-500.0,0.00017671,2]
[350314928,1737783063340,-500.0,0.00017671,2]
[350314929,1737783063350,-500.0,0.00017671,2]
[350314930,1737783063360,-565.16,0.00017671,2]
[350314931,1737783063499,-364.1478761,0.00017671,2]
[350314932,1737783063509,-500.0,0.00017671,2]
[350314933,1737783063519,-641.52058968,0.00017671,2]
[350314934,1737783063529,-708.27,0.00017671,2]
[350314935,1737783063539,-563.51,0.00017671,2]
[350314936,1737783063549,-201.82425812,0.00017671,2]
[350314937,1737783063558,-268.9076311,0.00017671,2]